[Event "FIDE Women World Blitz 2021"]
[Site "Warsaw"]
[Date "2021.12.29"]
[Round "8.31"]
[White "Paramzina, Anastasya"]
[Black "Berend, Elvira"]
[Result "1/2-1/2"]
[ECO "B90"]
[WhiteElo "2260"]
[BlackElo "2328"]
[Annotator "NA"]
[PlyCount "154"]
[EventDate "2021.12.29"]
[EventType "swiss"]
[EventCountry "POL"]
[Tiebreak "Cut1 Buchholz"]
[SourceTitle "playchess.com"]
[Source "ChessBase"]
[SourceQuality "1"]
[TimeControl "180+2"]

1. e4 {[%emt 0:00:01]} c5 {[%emt 0:00:01]} 2. Nf3 {[%emt 0:00:01]} d6 {[%emt 0:
00:02]} 3. d4 {[%emt 0:00:01]} cxd4 {[%emt 0:00:02]} 4. Nxd4 {[%emt 0:00:01]}
Nf6 {[%emt 0:00:02]} 5. Nc3 {[%emt 0:00:01]} a6 {[%emt 0:00:01]} 6. Nb3 {
[%emt 0:00:02]} g6 {[%emt 0:00:06]} 7. Be2 {[%emt 0:00:03]} Bg7 {[%emt 0:00:01]
} 8. g4 {[%emt 0:00:01]} Nc6 {[%emt 0:00:12]} 9. g5 {[%emt 0:00:37]} Nd7 {
[%emt 0:00:02]} 10. Be3 {[%emt 0:00:02]} b5 {[%emt 0:00:15]} 11. Qd2 {[%emt 0:
00:23]} b4 {[%emt 0:00:08]} 12. Na4 {[%emt 0:00:03]} Bb7 {[%emt 0:00:22]} 13.
O-O-O {[%emt 0:00:05]} Na5 {[%emt 0:00:16]} 14. Qxb4 {[%emt 0:00:09]} Nxb3+ {
[%emt 0:00:02]} 15. axb3 {[%emt 0:00:05]} Bc6 {[%emt 0:00:02]} 16. f3 {[%emt 0:
00:39]} Rb8 {[%emt 0:00:14]} 17. Qa3 {[%emt 0:00:01]} Bb5 {[%emt 0:00:12]} 18.
Rhe1 {[%emt 0:00:20]} Qc7 {[%emt 0:00:08]} 19. Kb1 {[%emt 0:00:06]} O-O {
[%emt 0:00:12]} 20. h4 {[%emt 0:00:01]} Rfc8 {[%emt 0:00:02]} 21. Rc1 {[%emt 0:
00:10]} Qa5 {[%emt 0:00:24]} 22. c3 {[%emt 0:00:14]} Bxa4 {[%emt 0:00:16]} 23.
b4 {[%emt 0:00:13]} Bc2+ {[%emt 0:00:17]} 24. Rxc2 {[%emt 0:00:01]} Qxa3 {
[%emt 0:00:02]} 25. bxa3 {[%emt 0:00:01]} a5 {[%emt 0:00:04]} 26. Rec1 {
[%emt 0:00:05]} Nb6 {[%emt 0:00:05]} 27. Ka2 {[%emt 0:00:06]} Ra8 {[%emt 0:00:
09]} 28. Kb3 {[%emt 0:00:02]} Rcb8 {[%emt 0:00:04]} 29. Bd4 {[%emt 0:00:07]}
Nd7 {[%emt 0:00:04]} 30. Bxg7 Kxg7 {[%emt 0:00:00]} 31. b5 {[%emt 0:00:06]}
Nc5+ {[%emt 0:00:03]} 32. Ka2 {[%emt 0:00:01]} a4 {[%emt 0:00:03]} 33. Rb1 {
[%emt 0:00:04]} Rb6 {[%emt 0:00:01]} 34. Rb4 {[%emt 0:00:01]} Rc8 {[%emt 0:00:
00]} 35. Rc1 {[%emt 0:00:04]} f6 {[%emt 0:00:01]} 36. gxf6+ {[%emt 0:00:03]}
Kxf6 {[%emt 0:00:01]} 37. f4 {[%emt 0:00:01]} h6 {[%emt 0:00:04]} 38. Rd1 {
[%emt 0:00:02]} Nd7 {[%emt 0:00:09]} 39. Rxa4 {[%emt 0:00:04]} Rxc3 {[%emt 0:
00:02]} 40. Rc4 {[%emt 0:00:02]} Re3 {[%emt 0:00:01]} 41. Bf1 {[%emt 0:00:02]}
Nc5 {[%emt 0:00:01]} 42. e5+ {[%emt 0:00:01]} Kg7 {[%emt 0:00:01]} 43. exd6 {
[%emt 0:00:02]} exd6 {[%emt 0:00:01]} 44. a4 {[%emt 0:00:03]} Rb8 {[%emt 0:00:
01]} 45. a5 {[%emt 0:00:01]} Rxb5 {[%emt 0:00:01]} 46. Rxd6 {[%emt 0:00:09]}
Rxa5+ {[%emt 0:00:02]} 47. Kb2 {[%emt 0:00:02]} Rb5+ {[%emt 0:00:04]} 48. Kc2 {
[%emt 0:00:01]} Ra5 {[%emt 0:00:01]} 49. Rb6 {[%emt 0:00:02]} Ne6 {[%emt 0:00:
04]} 50. Rb7+ {[%emt 0:00:02]} Kf6 {[%emt 0:00:00]} 51. Rc6 {[%emt 0:00:05]}
Ra2+ {[%emt 0:00:03]} 52. Rb2 {[%emt 0:00:03]} Rxb2+ {[%emt 0:00:02]} 53. Kxb2
{[%emt 0:00:01]} Ke7 {[%emt 0:00:01]} 54. Rb6 {[%emt 0:00:03]} Rf3 {[%emt 0:00:
01]} 55. Bc4 {[%emt 0:00:01]} Nxf4 {[%emt 0:00:02]} 56. Rb7+ {[%emt 0:00:01]}
Kd6 {[%emt 0:00:01]} 57. Rh7 {[%emt 0:00:02]} h5 {[%emt 0:00:01]} 58. Rf7 {
[%emt 0:00:01]} Ke5 {[%emt 0:00:02]} 59. Re7+ {[%emt 0:00:01]} Kd4 {[%emt 0:00:
01]} 60. Bf7 {[%emt 0:00:01]} Nd3+ {[%emt 0:00:01]} 61. Kc2 {[%emt 0:00:02]}
Ne5 {[%emt 0:00:02]} 62. Be8 {[%emt 0:00:01]} Rf2+ {[%emt 0:00:01]} 63. Kb3 {
[%emt 0:00:01]} Rf3+ {[%emt 0:00:02]} 64. Kc2 {[%emt 0:00:01]} Rf4 {[%emt 0:00:
02]} 65. Re6 {[%emt 0:00:02]} Rxh4 {[%emt 0:00:02]} 66. Bxg6 {[%emt 0:00:02]}
Rh2+ {[%emt 0:00:02]} 67. Kd1 {[%emt 0:00:02]} Nc4 {[%emt 0:00:03]} 68. Re4+ {
[%emt 0:00:01]} Kc3 {[%emt 0:00:02]} 69. Ke1 {[%emt 0:00:03]} h4 {[%emt 0:00:
01]} 70. Re7 {[%emt 0:00:02]} Nd2 {[%emt 0:00:04]} 71. Rc7+ {[%emt 0:00:01]}
Kb4 {[%emt 0:00:01]} 72. Bf5 {[%emt 0:00:04]} Nf3+ {[%emt 0:00:02]} 73. Kf1 {
[%emt 0:00:02]} Nd4 {[%emt 0:00:01]} 74. Bc8 {[%emt 0:00:02]} Nb5 {[%emt 0:00:
03]} 75. Rh7 {[%emt 0:00:01]} Kc3 {[%emt 0:00:01]} 76. Kg1 {[%emt 0:00:02]} Rb2
{[%emt 0:00:02]} 77. Rxh4 {[%emt 0:00:02]} Nd4 {[%emt 0:00:02]} 1/2-1/2

[Event "FIDE Women World Blitz 2021"]
[Site "Warsaw"]
[Date "2021.12.29"]
[Round "8.32"]
[White "Gil Quilez, Sonia"]
[Black "Danielian, Elina"]
[Result "0-1"]
[ECO "A60"]
[WhiteElo "2122"]
[BlackElo "2450"]
[Annotator "ChessBase"]
[PlyCount "38"]
[EventDate "2021.12.29"]
[EventType "swiss"]
[EventCountry "POL"]
[Tiebreak "Cut1 Buchholz"]
[SourceTitle "playchess.com"]
[Source "ChessBase"]
[SourceQuality "1"]
[TimeControl "180+2"]

1. d4 {[%emt 0:00:01]} Nf6 {[%emt 0:00:01]} 2. c4 {[%emt 0:00:00]} c5 {[%emt 0:
00:02]} 3. d5 {[%emt 0:00:01]} e6 {[%emt 0:00:01]} 4. Nc3 {[%emt 0:00:01]} exd5
{[%emt 0:00:01]} 5. cxd5 {[%emt 0:00:01]} Bd6 {[%emt 0:00:00]} 6. Nf3 {[%emt 0:
00:21]} Bc7 {[%emt 0:00:01]} 7. e4 {[%emt 0:00:17]} d6 {[%emt 0:00:01]} 8. Bd3
{[%emt 0:00:02]} O-O {[%emt 0:00:02]} 9. O-O {[%emt 0:00:03]} a6 {[%emt 0:00:
01]} 10. a4 {[%emt 0:00:01]} Nbd7 {[%emt 0:00:02]} 11. Bg5 {[%emt 0:00:06]} Re8
{[%emt 0:00:04]} 12. Bc2 {[%emt 0:00:09]} h6 {[%emt 0:00:08]} 13. Bh4 {[%emt 0:
00:01]} Nf8 {[%emt 0:00:01]} 14. Re1 {[%emt 0:00:06]} Ng6 {[%emt 0:00:03]} 15.
Bg3 {[%emt 0:00:01]} Nh5 {[%emt 0:00:18]} 16. a5 {[%emt 0:00:45]} Nxg3 {
[%emt 0:00:04]} 17. hxg3 {[%emt 0:00:01]} Bg4 {[%emt 0:00:24]} 18. Qd2 {
[%emt 0:00:05]} Bxa5 {[%emt 0:00:05]} 19. Qf4 {[%emt 0:00:07]} Nxf4 {[%emt 0:
00:02]} 0-1

[Event "FIDE Women World Blitz 2021"]
[Site "Warsaw"]
[Date "2021.12.29"]
[Round "8.33"]
[White "Smirnova, Ekaterina"]
[Black "Pourkashiyan, Atousa"]
[Result "0-1"]
[ECO "D36"]
[WhiteElo "2196"]
[BlackElo "2322"]
[Annotator "NA"]
[PlyCount "54"]
[EventDate "2021.12.29"]
[EventType "swiss"]
[EventCountry "POL"]
[Tiebreak "Cut1 Buchholz"]
[SourceTitle "playchess.com"]
[Source "ChessBase"]
[SourceQuality "1"]
[TimeControl "180+2"]

1. d4 {[%emt 0:00:00]} Nf6 {[%emt 0:00:01]} 2. c4 {[%emt 0:00:01]} e6 {[%emt 0:
00:01]} 3. Nf3 {[%emt 0:00:01]} d5 {[%emt 0:00:01]} 4. Nc3 {[%emt 0:00:01]}
Nbd7 {[%emt 0:00:01]} 5. cxd5 {[%emt 0:00:03]} exd5 {[%emt 0:00:01]} 6. Bg5 {
[%emt 0:00:02]} Be7 {[%emt 0:00:01]} 7. e3 {[%emt 0:00:01]} c6 {[%emt 0:00:01]}
8. Bd3 {[%emt 0:00:01]} O-O {[%emt 0:00:01]} 9. O-O {[%emt 0:00:02]} Re8 {
[%emt 0:00:01]} 10. Qc2 {[%emt 0:00:01]} Nf8 {[%emt 0:00:01]} 11. h3 {[%emt 0:
00:01]} Be6 {[%emt 0:00:07]} 12. Ne5 {[%emt 0:00:01]} N6d7 {[%emt 0:00:13]} 13.
Bxe7 {[%emt 0:00:06]} Qxe7 {[%emt 0:00:01]} 14. f4 {[%emt 0:00:01]} f6 {
[%emt 0:00:04]} 15. Nxd7 {[%emt 0:00:02]} Qxd7 {[%emt 0:00:07]} 16. Rae1 {
[%emt 0:00:08]} Re7 {[%emt 0:00:04]} 17. Qf2 {[%emt 0:00:07]} Rae8 {[%emt 0:00:
03]} 18. g4 {[%emt 0:00:07]} h5 {[%emt 0:00:17]} 19. f5 {[%emt 0:00:10]} Bf7 {
[%emt 0:00:01]} 20. Qg3 {[%emt 0:00:19]} Qc7 {[%emt 0:00:20]} 21. Qg2 {[%emt 0:
00:11]} Nh7 {[%emt 0:00:06]} 22. e4 {[%emt 0:00:09]} dxe4 {[%emt 0:00:04]} 23.
Nxe4 {[%emt 0:00:02]} Bd5 {[%emt 0:00:02]} 24. Qc2 {[%emt 0:00:35]} hxg4 {
[%emt 0:00:04]} 25. hxg4 {[%emt 0:00:03]} Ng5 {[%emt 0:00:10]} 26. Bc4 {
[%emt 0:00:46]} Nxe4 {[%emt 0:00:01]} 27. Rxe4 {[%emt 0:00:03]} Qg3+ {[%emt 0:
00:02]} 0-1

[Event "FIDE Women World Blitz 2021"]
[Site "Warsaw"]
[Date "2021.12.29"]
[Round "8.34"]
[White "Fernandez, Maria Florencia"]
[Black "Atalik, Ekaterina"]
[Result "0-1"]
[ECO "D43"]
[WhiteElo "2184"]
[BlackElo "2430"]
[Annotator "NA"]
[PlyCount "77"]
[EventDate "2021.12.29"]
[EventType "swiss"]
[EventCountry "POL"]
[Tiebreak "Cut1 Buchholz"]
[SourceTitle "playchess.com"]
[Source "ChessBase"]
[SourceQuality "1"]
[TimeControl "180+2"]

1. d4 {[%emt 0:00:02]} d5 {[%emt 0:00:01]} 2. c4 {[%emt 0:00:01]} e6 {[%emt 0:
00:02]} 3. Nc3 {[%emt 0:00:04]} c6 {[%emt 0:00:02]} 4. Nf3 {[%emt 0:00:04]} Nf6
{[%emt 0:00:01]} 5. b3 {[%emt 0:00:13]} Bb4 {[%emt 0:00:11]} 6. Qc2 {[%emt 0:
00:08]} Ne4 {[%emt 0:00:05]} 7. Bd2 {[%emt 0:00:30]} Nxd2 {[%emt 0:00:03]} 8.
Nxd2 {[%emt 0:00:02]} O-O {[%emt 0:00:03]} 9. e3 {[%emt 0:00:01]} Be7 {[%emt 0:
00:03]} 10. Bd3 {[%emt 0:00:01]} f5 {[%emt 0:00:02]} 11. O-O {[%emt 0:00:02]}
Bd7 {[%emt 0:00:05]} 12. Nf3 {[%emt 0:00:06]} Be8 {[%emt 0:00:01]} 13. Ne5 {
[%emt 0:00:01]} Nd7 {[%emt 0:00:03]} 14. f4 {[%emt 0:00:02]} Nxe5 {[%emt 0:00:
07]} 15. fxe5 {[%emt 0:00:01]} Rc8 {[%emt 0:00:02]} 16. c5 {[%emt 0:00:09]} Kh8
{[%emt 0:00:07]} 17. b4 {[%emt 0:00:02]} Rg8 {[%emt 0:00:10]} 18. a4 {[%emt 0:
00:04]} g5 {[%emt 0:00:07]} 19. b5 {[%emt 0:00:17]} b6 {[%emt 0:00:04]} 20.
cxb6 {[%emt 0:00:17]} Qxb6 {[%emt 0:00:05]} 21. a5 {[%emt 0:00:13]} Qc7 {
[%emt 0:00:01]} 22. Rfc1 {[%emt 0:00:49]} cxb5 {[%emt 0:00:05]} 23. Qb2 {
[%emt 0:00:04]} Qb8 {[%emt 0:00:16]} 24. a6 {[%emt 0:00:25]} b4 {[%emt 0:00:03]
} 25. Ne2 {[%emt 0:00:06]} Rxc1+ {[%emt 0:00:07]} 26. Rxc1 {[%emt 0:00:01]} Qb6
{[%emt 0:00:04]} 27. Rb1 {[%emt 0:00:02]} Bd7 {[%emt 0:00:03]} 28. Nc1 {
[%emt 0:00:04]} Rb8 {[%emt 0:00:03]} 29. Nb3 {[%emt 0:00:01]} Bb5 {[%emt 0:00:
05]} 30. Bxb5 {[%emt 0:00:03]} Qxb5 {[%emt 0:00:01]} 31. Ra1 {[%emt 0:00:03]}
Qd3 {[%emt 0:00:04]} 32. Re1 {[%emt 0:00:04]} Rc8 {[%emt 0:00:02]} 33. Qe2 {
[%emt 0:00:03]} Qxb3 {[%emt 0:00:02]} 34. Qb5 {[%emt 0:00:01]} Qc3 {[%emt 0:00:
07]} 35. Rf1 {[%emt 0:00:00]} Qc6 {[%emt 0:00:03]} 36. Qa5 {[%emt 0:00:02]} Qb6
{[%emt 0:00:04]} 37. Qa4 {[%emt 0:00:02]} Qc6 {[%emt 0:00:04]} 38. Qa5 {
[%emt 0:00:03]} b3 {[%emt 0:00:02]} 39. Qa1 {[%emt 0:00:07]} 0-1

[Event "FIDE Women World Blitz 2021"]
[Site "Warsaw"]
[Date "2021.12.29"]
[Round "8.35"]
[White "Pavlidou, Ekaterini"]
[Black "Rakhmangulova, Anastasiya"]
[Result "0-1"]
[ECO "E70"]
[WhiteElo "2177"]
[BlackElo "2174"]
[Annotator "NA"]
[PlyCount "80"]
[EventDate "2021.12.29"]
[EventType "swiss"]
[EventCountry "POL"]
[Tiebreak "Cut1 Buchholz"]
[SourceTitle "playchess.com"]
[Source "ChessBase"]
[SourceQuality "1"]
[TimeControl "180+2"]

1. d4 {[%emt 0:00:02]} Nf6 {[%emt 0:00:01]} 2. c4 {[%emt 0:00:01]} c5 {[%emt 0:
00:00]} 3. d5 {[%emt 0:00:01]} e6 {[%emt 0:00:01]} 4. Nc3 {[%emt 0:00:01]} d6 {
[%emt 0:00:00]} 5. e4 {[%emt 0:00:04]} g6 {[%emt 0:00:01]} 6. Bd3 {[%emt 0:00:
10]} Bg7 {[%emt 0:00:01]} 7. h3 {[%emt 0:00:07]} O-O {[%emt 0:00:02]} 8. Nge2 {
[%emt 0:00:01]} Na6 {[%emt 0:00:04]} 9. O-O {[%emt 0:00:07]} Nc7 {[%emt 0:00:
18]} 10. a4 {[%emt 0:00:02]} Re8 {[%emt 0:00:09]} 11. Qc2 {[%emt 0:00:22]} Rb8
{[%emt 0:00:17]} 12. Bg5 {[%emt 0:00:07]} b6 {[%emt 0:00:21]} 13. Rae1 {
[%emt 0:00:10]} a6 {[%emt 0:00:05]} 14. f4 {[%emt 0:00:19]} exd5 {[%emt 0:00:
02]} 15. exd5 {[%emt 0:00:12]} b5 {[%emt 0:00:33]} 16. axb5 {[%emt 0:00:06]}
axb5 {[%emt 0:00:01]} 17. Nxb5 {[%emt 0:00:06]} Nxb5 {[%emt 0:00:06]} 18. cxb5
{[%emt 0:00:02]} Qb6 {[%emt 0:00:19]} 19. Bc4 {[%emt 0:00:21]} Bf5 {[%emt 0:00:
03]} 20. Qb3 {[%emt 0:00:13]} Ne4 {[%emt 0:00:24]} 21. Rd1 {[%emt 0:00:03]}
Nxg5 {[%emt 0:00:15]} 22. fxg5 {[%emt 0:00:09]} Re4 {[%emt 0:00:06]} 23. Ng3 {
[%emt 0:00:06]} Bd4+ {[%emt 0:00:01]} 24. Kh1 {[%emt 0:00:04]} Re3 {[%emt 0:00:
02]} 25. Nxf5 {[%emt 0:00:14]} Rxb3 {[%emt 0:00:02]} 26. Nh6+ {[%emt 0:00:01]}
Kh8 {[%emt 0:00:14]} 27. Bxb3 {[%emt 0:00:03]} f5 {[%emt 0:00:11]} 28. gxf6 {
[%emt 0:00:04]} Rf8 {[%emt 0:00:05]} 29. f7 {[%emt 0:00:28]} Qxb5 {[%emt 0:00:
01]} 30. Rf3 {[%emt 0:00:07]} Kg7 {[%emt 0:00:01]} 31. Ng4 {[%emt 0:00:02]}
Rxf7 {[%emt 0:00:01]} 32. Rxf7+ {[%emt 0:00:01]} Kxf7 {[%emt 0:00:01]} 33. Bc2
{[%emt 0:00:01]} Qxb2 {[%emt 0:00:03]} 34. Bd3 {[%emt 0:00:03]} Qb3 {[%emt 0:
00:04]} 35. Rf1+ {[%emt 0:00:02]} Kg7 {[%emt 0:00:00]} 36. Be2 {[%emt 0:00:02]}
c4 {[%emt 0:00:02]} 37. h4 {[%emt 0:00:06]} Qg3 {[%emt 0:00:02]} 38. h5 {
[%emt 0:00:04]} Qh4+ {[%emt 0:00:00]} 39. Nh2 {[%emt 0:00:01]} Be5 {[%emt 0:00:
01]} 40. g3 {[%emt 0:00:02]} Bxg3 {[%emt 0:00:03]} 0-1

[Event "FIDE Women World Blitz 2021"]
[Site "Warsaw"]
[Date "2021.12.29"]
[Round "8.36"]
[White "Kucharska, Honorata"]
[Black "Maisuradze, Nino"]
[Result "0-1"]
[ECO "A06"]
[WhiteElo "2168"]
[BlackElo "2175"]
[Annotator "NA"]
[PlyCount "110"]
[EventDate "2021.12.29"]
[EventType "swiss"]
[EventCountry "POL"]
[Tiebreak "Cut1 Buchholz"]
[SourceTitle "playchess.com"]
[Source "ChessBase"]
[SourceQuality "1"]
[TimeControl "180+2"]

1. d4 {[%emt 0:00:01]} Nf6 {[%emt 0:00:02]} 2. Nf3 {[%emt 0:00:01]} d5 {
[%emt 0:00:08]} 3. e3 {[%emt 0:00:02]} Bf5 {[%emt 0:00:05]} 4. Be2 {[%emt 0:00:
04]} c6 {[%emt 0:00:02]} 5. O-O {[%emt 0:00:02]} e6 {[%emt 0:00:01]} 6. b3 {
[%emt 0:00:02]} h6 {[%emt 0:00:02]} 7. c4 {[%emt 0:00:02]} Bd6 {[%emt 0:00:01]}
8. Bb2 {[%emt 0:00:04]} Nbd7 {[%emt 0:00:01]} 9. Nc3 {[%emt 0:00:04]} Qe7 {
[%emt 0:00:03]} 10. Bd3 {[%emt 0:00:06]} Ne4 {[%emt 0:00:25]} 11. c5 {[%emt 0:
00:10]} Bc7 {[%emt 0:00:02]} 12. Qc2 {[%emt 0:00:08]} Nxc3 {[%emt 0:00:12]} 13.
Bxc3 {[%emt 0:00:02]} Bxd3 {[%emt 0:00:02]} 14. Qxd3 {[%emt 0:00:02]} f5 {
[%emt 0:00:02]} 15. b4 {[%emt 0:00:05]} b6 {[%emt 0:00:45]} 16. b5 {[%emt 0:00:
17]} cxb5 {[%emt 0:00:06]} 17. Qxb5 {[%emt 0:00:02]} O-O {[%emt 0:00:23]} 18.
c6 {[%emt 0:00:04]} Nf6 {[%emt 0:00:03]} 19. Bb4 {[%emt 0:00:06]} Bd6 20. Bxd6
Qxd6 21. Ne5 {[%emt 0:00:03]} Ng4 {[%emt 0:00:14]} 22. Nxg4 {[%emt 0:00:06]}
fxg4 23. Rac1 {[%emt 0:00:02]} Rac8 {[%emt 0:00:06]} 24. a4 {[%emt 0:00:01]}
Rc7 {[%emt 0:00:01]} 25. Rc2 {[%emt 0:00:06]} Rf5 {[%emt 0:00:10]} 26. g3 {
[%emt 0:00:06]} h5 {[%emt 0:00:05]} 27. Rfc1 {[%emt 0:00:05]} h4 {[%emt 0:00:
02]} 28. a5 {[%emt 0:00:02]} bxa5 {[%emt 0:00:05]} 29. Qxa5 {[%emt 0:00:02]} h3
{[%emt 0:00:03]} 30. Qc5 {[%emt 0:00:02]} Qd8 {[%emt 0:00:04]} 31. Rb2 {
[%emt 0:00:04]} Rff7 {[%emt 0:00:07]} 32. Rcb1 {[%emt 0:00:02]} Qf6 {[%emt 0:
00:02]} 33. Rb8+ {[%emt 0:00:12]} Kh7 {[%emt 0:00:04]} 34. Qc2+ {[%emt 0:00:02]
} g6 {[%emt 0:00:01]} 35. Qe2 {[%emt 0:00:03]} Qf5 {[%emt 0:00:04]} 36. Rc1 {
[%emt 0:00:08]} Kg7 {[%emt 0:00:06]} 37. Rb5 {[%emt 0:00:16]} Qe4 {[%emt 0:00:
05]} 38. f4 {[%emt 0:00:04]} gxf3 {[%emt 0:00:02]} 39. Qf2 {[%emt 0:00:02]} Qd3
{[%emt 0:00:05]} 40. Rbc5 {[%emt 0:00:01]} g5 {[%emt 0:00:05]} 41. R5c3 {
[%emt 0:00:02]} Qe4 {[%emt 0:00:04]} 42. Rf1 {[%emt 0:00:06]} g4 {[%emt 0:00:
01]} 43. Qc2 {[%emt 0:00:04]} Rf8 {[%emt 0:00:08]} 44. Qxe4 {[%emt 0:00:01]}
dxe4 {[%emt 0:00:00]} 45. Rb1 {[%emt 0:00:03]} Rfc8 {[%emt 0:00:02]} 46. Rb7 {
[%emt 0:00:09]} Kf6 {[%emt 0:00:02]} 47. Rxc7 {[%emt 0:00:08]} Rxc7 {[%emt 0:
00:01]} 48. Rc5 {[%emt 0:00:02]} Ke7 {[%emt 0:00:02]} 49. Re5 {[%emt 0:00:14]}
Rxc6 {[%emt 0:00:02]} 50. Rxe4 {[%emt 0:00:01]} Rc1+ {[%emt 0:00:01]} 51. Kf2 {
[%emt 0:00:01]} Rc2+ {[%emt 0:00:00]} 52. Kf1 {[%emt 0:00:01]} Rxh2 {[%emt 0:
00:06]} 53. Rxg4 {[%emt 0:00:01]} Rg2 {[%emt 0:00:03]} 54. Rh4 {[%emt 0:00:02]}
h2 {[%emt 0:00:02]} 55. g4 {[%emt 0:00:06]} Rg1+ {[%emt 0:00:01]} 0-1

[Event "FIDE Women World Blitz 2021"]
[Site "Warsaw"]
[Date "2021.12.29"]
[Round "8.37"]
[White "Sandu, Mihaela"]
[Black "Yakimova, Mariya"]
[Result "1-0"]
[ECO "B33"]
[WhiteElo "2244"]
[BlackElo "2219"]
[Annotator "NA"]
[PlyCount "63"]
[EventDate "2021.12.29"]
[EventType "swiss"]
[EventCountry "POL"]
[Tiebreak "Cut1 Buchholz"]
[SourceTitle "playchess.com"]
[Source "ChessBase"]
[SourceQuality "1"]
[TimeControl "180+2"]

1. e4 {[%emt 0:00:01]} c5 {[%emt 0:00:01]} 2. Nf3 {[%emt 0:00:00]} Nc6 {
[%emt 0:00:01]} 3. d4 {[%emt 0:00:01]} cxd4 {[%emt 0:00:01]} 4. Nxd4 {[%emt 0:
00:00]} Nf6 {[%emt 0:00:01]} 5. Nc3 {[%emt 0:00:01]} e5 {[%emt 0:00:02]} 6.
Ndb5 {[%emt 0:00:01]} d6 {[%emt 0:00:01]} 7. Bg5 {[%emt 0:00:03]} a6 {[%emt 0:
00:01]} 8. Na3 {[%emt 0:00:01]} b5 {[%emt 0:00:00]} 9. Nd5 {[%emt 0:00:01]} Be7
{[%emt 0:00:01]} 10. Bxf6 {[%emt 0:00:01]} Bxf6 {[%emt 0:00:01]} 11. c3 {
[%emt 0:00:01]} Ne7 {[%emt 0:00:03]} 12. Nxf6+ {[%emt 0:00:10]} gxf6 {[%emt 0:
00:01]} 13. Nc2 {[%emt 0:00:10]} f5 {[%emt 0:00:26]} 14. exf5 {[%emt 0:00:06]}
Bxf5 {[%emt 0:00:04]} 15. Ne3 {[%emt 0:00:01]} Be6 {[%emt 0:00:02]} 16. Qh5 {
[%emt 0:00:20]} Qb6 {[%emt 0:00:15]} 17. g3 {[%emt 0:00:07]} O-O-O {[%emt 0:00:
37]} 18. Bg2 {[%emt 0:00:01]} f5 {[%emt 0:00:13]} 19. Qh6 {[%emt 0:00:09]} d5 {
[%emt 0:00:14]} 20. O-O {[%emt 0:00:07]} Ng6 {[%emt 0:00:06]} 21. a4 {[%emt 0:
00:07]} d4 {[%emt 0:00:10]} 22. cxd4 {[%emt 0:00:12]} exd4 {[%emt 0:00:01]} 23.
axb5 {[%emt 0:00:07]} dxe3 {[%emt 0:00:24]} 24. Rxa6 {[%emt 0:00:02]} exf2+ {
[%emt 0:00:08]} 25. Kh1 {[%emt 0:00:01]} Qxb5 {[%emt 0:00:19]} 26. Rxe6 {
[%emt 0:00:11]} Rhe8 {[%emt 0:00:12]} 27. Rc6+ {[%emt 0:00:10]} Kb8 {[%emt 0:
00:01]} 28. Qxh7 {[%emt 0:00:06]} Ne7 {[%emt 0:00:12]} 29. Re6 {[%emt 0:00:14]}
Nd5 {[%emt 0:00:09]} 30. Rxe8 {[%emt 0:00:07]} Rxe8 {[%emt 0:00:01]} 31. Qxf5 {
[%emt 0:00:02]} Ne3 {[%emt 0:00:08]} 32. Qxb5+ {[%emt 0:00:02]} 1-0

[Event "FIDE Women World Blitz 2021"]
[Site "Warsaw"]
[Date "2021.12.29"]
[Round "8.38"]
[White "Sliwicka, Alicja"]
[Black "Jarocka, Liwia"]
[Result "1-0"]
[ECO "C47"]
[WhiteElo "2303"]
[BlackElo "1851"]
[Annotator "NA"]
[PlyCount "133"]
[EventDate "2021.12.29"]
[EventType "swiss"]
[EventCountry "POL"]
[Tiebreak "Cut1 Buchholz"]
[SourceTitle "playchess.com"]
[Source "ChessBase"]
[SourceQuality "1"]
[TimeControl "180+2"]

1. e4 {[%emt 0:00:01]} e5 {[%emt 0:00:00]} 2. Nf3 {[%emt 0:00:02]} Nc6 {
[%emt 0:00:01]} 3. Nc3 {[%emt 0:00:01]} Nf6 {[%emt 0:00:02]} 4. a3 {[%emt 0:00:
01]} d5 {[%emt 0:00:04]} 5. Bb5 {[%emt 0:00:01]} Nxe4 {[%emt 0:00:13]} 6. Qe2 {
[%emt 0:00:23]} Nxc3 {[%emt 0:00:23]} 7. Qxe5+ {[%emt 0:00:03]} Qe7 {[%emt 0:
00:04]} 8. dxc3 {[%emt 0:00:20]} Bd7 {[%emt 0:00:10]} 9. Qxe7+ {[%emt 0:00:16]}
Bxe7 {[%emt 0:00:01]} 10. Bf4 {[%emt 0:00:04]} O-O-O {[%emt 0:00:07]} 11. O-O-O
{[%emt 0:00:03]} Bg4 {[%emt 0:00:14]} 12. Rd3 {[%emt 0:00:09]} Bxf3 {[%emt 0:
00:05]} 13. Rxf3 {[%emt 0:00:04]} Bf6 {[%emt 0:00:03]} 14. Re1 {[%emt 0:00:15]}
Ne7 {[%emt 0:00:22]} 15. Bd3 {[%emt 0:00:11]} Ng6 {[%emt 0:00:03]} 16. Bf5+ {
[%emt 0:00:06]} Kb8 {[%emt 0:00:03]} 17. Bg3 {[%emt 0:00:11]} Rhe8 {[%emt 0:00:
31]} 18. Kd1 {[%emt 0:00:07]} Rxe1+ {[%emt 0:00:07]} 19. Kxe1 {[%emt 0:00:01]}
b6 {[%emt 0:00:03]} 20. Rd3 {[%emt 0:00:12]} Kb7 {[%emt 0:00:12]} 21. Bg4 {
[%emt 0:00:03]} c6 {[%emt 0:00:05]} 22. f4 {[%emt 0:00:32]} Bh4 {[%emt 0:00:19]
} 23. Kf2 {[%emt 0:00:02]} Bxg3+ {[%emt 0:00:04]} 24. hxg3 {[%emt 0:00:03]} Re8
{[%emt 0:00:07]} 25. Re3 {[%emt 0:00:02]} Rxe3 {[%emt 0:00:03]} 26. Kxe3 {
[%emt 0:00:01]} Kc7 {[%emt 0:00:01]} 27. b3 {[%emt 0:00:11]} Kd6 {[%emt 0:00:
01]} 28. Kd3 {[%emt 0:00:02]} c5 {[%emt 0:00:01]} 29. c4 {[%emt 0:00:03]} d4 {
[%emt 0:00:03]} 30. c3 {[%emt 0:00:02]} dxc3 {[%emt 0:00:01]} 31. Kxc3 {
[%emt 0:00:01]} Ne7 {[%emt 0:00:02]} 32. Kd3 {[%emt 0:00:04]} Nc6 {[%emt 0:00:
00]} 33. Bd1 {[%emt 0:00:13]} h6 {[%emt 0:00:11]} 34. g4 {[%emt 0:00:01]} g5 {
[%emt 0:00:06]} 35. g3 {[%emt 0:00:01]} Nd4 {[%emt 0:00:06]} 36. b4 {[%emt 0:
00:01]} Ne6 {[%emt 0:00:01]} 37. Ke4 {[%emt 0:00:02]} Ng7 {[%emt 0:00:09]} 38.
b5 {[%emt 0:00:03]} Ke6 {[%emt 0:00:03]} 39. a4 {[%emt 0:00:04]} Kd6 {[%emt 0:
00:01]} 40. Bc2 {[%emt 0:00:10]} Ke6 {[%emt 0:00:01]} 41. Ke3 {[%emt 0:00:03]}
Kd6 {[%emt 0:00:01]} 42. Be4 {[%emt 0:00:02]} Ne6 {[%emt 0:00:04]} 43. Bd5 {
[%emt 0:00:02]} Nd4 {[%emt 0:00:02]} 44. Bxf7 {[%emt 0:00:03]} Nc2+ {[%emt 0:
00:06]} 45. Kd3 {[%emt 0:00:01]} Nb4+ {[%emt 0:00:01]} 46. Ke4 {[%emt 0:00:01]}
Na2 {[%emt 0:00:02]} 47. Kd3 {[%emt 0:00:01]} Nb4+ {[%emt 0:00:01]} 48. Kd2 {
[%emt 0:00:01]} Ke7 {[%emt 0:00:01]} 49. Bg6 {[%emt 0:00:02]} Kf6 {[%emt 0:00:
01]} 50. Be4 {[%emt 0:00:01]} Ke6 {[%emt 0:00:02]} 51. Bb1 {[%emt 0:00:04]} Kf6
{[%emt 0:00:01]} 52. Ke3 {[%emt 0:00:01]} Ke6 {[%emt 0:00:02]} 53. Ke4 {
[%emt 0:00:04]} Kf6 {[%emt 0:00:01]} 54. f5 {[%emt 0:00:02]} a6 {[%emt 0:00:04]
} 55. bxa6 {[%emt 0:00:02]} Nxa6 {[%emt 0:00:01]} 56. Kd5 {[%emt 0:00:01]} Nb4+
{[%emt 0:00:02]} 57. Kd6 {[%emt 0:00:01]} Na6 {[%emt 0:00:08]} 58. Kc6 {
[%emt 0:00:03]} Nb8+ {[%emt 0:00:01]} 59. Kxb6 {[%emt 0:00:02]} Nd7+ {[%emt 0:
00:00]} 60. Kb5 {[%emt 0:00:03]} Ke5 {[%emt 0:00:02]} 61. a5 {[%emt 0:00:01]}
Kd6 {[%emt 0:00:02]} 62. Ka6 {[%emt 0:00:05]} Kc6 {[%emt 0:00:03]} 63. Be4+ {
[%emt 0:00:01]} Kc7 {[%emt 0:00:00]} 64. Kb5 {[%emt 0:00:01]} Kd6 {[%emt 0:00:
03]} 65. a6 {[%emt 0:00:02]} Kc7 {[%emt 0:00:01]} 66. a7 {[%emt 0:00:02]} Nb6 {
[%emt 0:00:01]} 67. a8=Q {[%emt 0:00:02]} 1-0